fUST/lending_fUST_20240908
["ID","MTS","AMOUNT","RATE_DAILY","PERIOD"]
[337554395,1725807430260,-500.0,0.00046575,120]
[337554396,1725807430288,-500.0,0.00046575,120]
[337554397,1725807430316,-881.95,0.00046575,120]
[337554398,1725807430348,-500.0,0.00046575,120]
[337554399,1725807430377,-299.27515514,0.00046575,120]
[337554400,1725807430405,-500.0,0.00046575,120]
[337554401,1725807430432,-500.0,0.00046575,120]
[337554402,1725807430459,-500.0,0.00046575,120]
[337554403,1725807430487,-500.0,0.00046575,120]
[337554404,1725807430516,-500.0,0.00046575,120]
[337554405,1725807430702,-500.0,0.00046575,120]
[337554406,1725807430731,-500.0,0.00046575,120]
[337554407,1725807430759,-500.0,0.00046575,120]
[337554408,1725807430786,-659.71,0.00046575,120]
[337554409,1725807430813,-500.0,0.00046575,120]
[337554410,1725807430843,-500.0,0.00046575,120]
[337554411,1725807430870,-554.89,0.00046575,120]
[337554412,1725807430897,-813.91,0.00046575,120]
[337554413,1725807430925,-1047.7,0.00046575,120]
[337554414,1725807430953,-500.0,0.00046575,120]
[337554415,1725807430981,-500.0,0.00046575,120]
[337554416,1725807431009,-1870.68,0.00046575,120]
[337554417,1725807431039,-789.35,0.00046575,120]
[337554418,1725807431067,-500.0,0.00046575,120]
[337554419,1725807431098,-500.0,0.00046575,120]
[337554420,1725807431146,-553.59067757,0.00046575,120]
[337554421,1725807431194,-3602.32,0.00046575,120]
[337554422,1725807431242,-500.0,0.00046575,120]
[337554423,1725807431286,-1393.8860467,0.00046575,120]
[337554429,1725807701394,600.0,0.0003,2]
[337554434,1725807839394,300.0,0.00025204,2]
[337554436,1725807860369,651.40894554,0.00026574,2]
[337554448,1725807963890,900.0,0.0003,2]
[337554451,1725808066950,-3200.0,0.00031464,2]
[337554452,1725808066976,-166.666666,0.00035715,2]
[337554453,1725808067001,-166.666666,0.00036689,2]
[337554454,1725808067027,-166.666666,0.00037663,2]
[337554455,1725808067052,-166.666666,0.00038636,2]
[337554456,1725808067079,-166.666666,0.0003961,2]
[337554457,1725808067105,-166.666666,0.00040584,2]
[337554458,1725808067131,-1955.30552952,0.000459,28]
[337554459,1725808067159,-18844.69447448,0.0004591,5]
[337554460,1725808069654,-8282.87971217,0.0004591,5]
[337554461,1725808069681,-2823.309442,0.00046,120]
[337554462,1725808069709,-1000.0,0.00046,46]
[337554463,1725808069737,-1000.0,0.000463,120]
[337554464,1725808071269,3200.0,0.000463,30]
[337554465,1725808082602,3208.191,0.000463,30]
[337554505,1725808232503,-951.40894554,0.000464,120]
[337554507,1725808232559,-1260.433,0.000464,120]
[337554508,1725808232571,-551.9,0.000464,120]
[337554571,1725808238626,-20098.85536772,0.000464,120]
[337554577,1725808238676,-66025.40268674,0.000464,120]
[337554579,1725808238685,-1710.89233833,0.00046454,28]
[337554581,1725808238695,-580.59951584,0.00046554,120]
[337554583,1725808238704,-37793.0475518,0.00046555,5]
[337554584,1725808238713,-191363.41884108,0.00046555,5]
[337554636,1725808240956,-35394.86646992,0.00046555,5]
[337554637,1725808240966,-500.0,0.00046575,120]
[337554638,1725808240976,-500.0,0.00046575,120]
[337554639,1725808240986,-526.04526131,0.00046575,120]
[337554640,1725808240995,-500.0,0.00046575,120]
[337554641,1725808241005,-500.0,0.00046575,120]
[337554642,1725808241015,-500.0,0.00046575,120]
[337554643,1725808241024,-500.0,0.00046575,120]
[337554644,1725808241034,-500.0,0.00046575,120]
[337554645,1725808241044,-500.0,0.00046575,120]
[337554646,1725808241055,-500.0,0.00046575,120]
[337554647,1725808241064,-540.63188747,0.00046575,120]
[337554648,1725808241074,-500.0,0.00046575,120]
[337554649,1725808241084,-500.0,0.00046575,120]
[337554650,1725808241094,-500.0,0.00046575,120]
[337554651,1725808241103,-500.0,0.00046575,120]
[337554652,1725808241112,-500.0,0.00046575,120]
[337554653,1725808241122,-500.0,0.00046575,120]
[337554654,1725808241133,-500.0,0.00046575,120]
[337554655,1725808241143,-500.0,0.00046575,120]
[337554656,1725808241154,-500.0,0.00046575,120]
[337554657,1725808241164,-500.0,0.00046575,120]
[337554658,1725808241173,-870.93,0.00046575,120]
[337554659,1725808241183,-1376.75,0.00046575,120]
[337554660,1725808241192,-4258.03,0.00046575,120]
[337554661,1725808241202,-500.0,0.00046575,120]
[337554662,1725808241215,-500.0,0.00046575,120]
[337554663,1725808241225,-500.0,0.00046575,120]
[337554664,1725808241234,-500.0,0.00046575,120]
[337554665,1725808241244,-500.0,0.00046575,120]
[337554666,1725808241255,-508.47038141,0.00046575,120]
[337554667,1725808241265,-500.0,0.00046575,30]
[337554668,1725808241274,-500.0,0.00046575,120]
[337554669,1725808241285,-500.0,0.00046575,120]
[337554670,1725808241295,-450.43285032,0.00046575,120]
[337554671,1725808241305,-706.87,0.00046575,120]
[337554672,1725808241314,-500.0,0.00046575,120]
[337554673,1725808241324,-500.0,0.00046575,120]
[337554674,1725808241333,-500.0,0.00046575,120]
[337554675,1725808241343,-1821.55,0.00046575,120]
[337554676,1725808241352,-500.0,0.00046575,120]
[337554677,1725808241363,-500.0,0.00046575,120]
[337554678,1725808241374,-505.94631158,0.00046575,120]
[337554679,1725808241383,-500.0,0.00046575,120]
[337554680,1725808241393,-500.0,0.00046575,120]
[337554681,1725808241403,-500.0,0.00046575,120]
[337554682,1725808241413,-511.13028951,0.00046575,120]
[337554683,1725808241423,-777.55,0.00046575,120]
[337554684,1725808241433,-500.0,0.00046575,120]
[337554685,1725808241443,-500.0,0.00046575,120]
[337554686,1725808241453,-500.0,0.00046575,120]
[337554687,1725808241465,-504.03105899,0.00046575,120]
[337554688,1725808241476,-500.0,0.00046575,120]
[337554689,1725808241486,-504.82,0.00046575,120]
[337554690,1725808241496,-500.0,0.00046575,120]
[337554691,1725808241506,-827.47,0.00046575,120]
[337554692,1725808241515,-500.0,0.00046575,120]
[337554693,1725808241524,-901.86,0.00046575,120]
[337554694,1725808241534,-972.18,0.00046575,120]
[337554695,1725808241543,-500.0,0.00046575,7]
[337554696,1725808241553,-500.0,0.00046575,120]
[337554697,1725808241563,-500.0,0.00046575,120]
[337554698,1725808241573,-500.0,0.00046575,120]
[337554699,1725808241586,-509.53,0.00046575,120]
[337554700,1725808241595,-500.0,0.00046575,120]
[337554701,1725808241604,-828.94,0.00046575,120]
[337554702,1725808241614,-500.0,0.00046575,120]
[337554703,1725808241625,-500.0,0.00046575,120]
[337554704,1725808241635,-500.0,0.00046575,120]
[337554705,1725808241645,-500.0,0.00046575,120]
[337554706,1725808241655,-500.0,0.00046575,120]
[337554707,1725808241664,-500.0,0.00046575,120]
[337554708,1725808241674,-500.0,0.00046575,120]
[337554709,1725808241684,-500.0,0.00046575,120]
[337554710,1725808241694,-500.0,0.00046575,120]
[337554711,1725808241886,-500.0,0.00046575,120]
[337554712,1725808241898,-500.0,0.00046575,120]
[337554713,1725808241908,-500.0,0.00046575,120]
[337554714,1725808241920,-500.0,0.00046575,120]
[337554715,1725808241931,-507.31483808,0.00046575,120]
[337554716,1725808241943,-500.0,0.00046575,120]
[337554717,1725808241954,-500.0,0.00046575,120]
[337554718,1725808241963,-500.0,0.00046575,120]
[337554719,1725808241973,-500.0,0.00046575,120]
[337554720,1725808241983,-500.0,0.00046575,120]
[337554721,1725808241995,-560.18,0.00046575,120]
[337554722,1725808242004,-500.0,0.00046575,120]
[337554723,1725808242014,-500.0,0.00046575,120]
[337554724,1725808242025,-500.0,0.00046575,120]
[337554725,1725808242035,-200.0,0.00046575,120]
[337554726,1725808242045,-500.0,0.00046575,120]
[337554727,1725808242055,-507.59723379,0.00046575,120]
[337554728,1725808242067,-500.0,0.00046575,2]
[337554729,1725808242078,-500.0,0.00046575,120]
[337554730,1725808242087,-500.0,0.00046575,120]
[337554731,1725808242097,-500.0,0.00046575,120]
[337554732,1725808242106,-500.0,0.00046575,120]
[337554733,1725808242115,-490.55164528,0.00046575,120]
[337554734,1725808242124,-500.0,0.00046575,120]
[337554735,1725808242134,-500.0,0.00046575,120]
[337554736,1725808242143,-236.27109718,0.00046575,120]
[337554737,1725808242153,-764.43,0.00046575,30]
[337554738,1725808242162,-500.0,0.00046575,120]
[337554739,1725808242174,-500.0,0.00046575,2]
[337554740,1725808242186,-668.6,0.00046575,30]
[337554741,1725808242196,-500.0,0.00046575,120]
[337554742,1725808242206,-500.0,0.00046575,120]
[337554743,1725808242219,-500.0,0.00046575,120]
[337554744,1725808242228,-500.0,0.00046575,120]
[337554745,1725808242238,-611.8,0.00046575,120]
[337554746,1725808242247,-500.0,0.00046575,7]
[337554747,1725808242258,-500.0,0.00046575,120]
[337554748,1725808242269,-500.0,0.00046575,120]
[337554749,1725808242278,-216.81555469,0.00046575,120]
[337554750,1725808242291,-500.0,0.00046575,120]
[337554751,1725808242302,-500.0,0.00046575,120]
[337554752,1725808242311,-236.57440221,0.00046575,120]
[337554774,1725808244453,-263.42559779,0.00046575,120]
[337554775,1725808244462,-500.0,0.00046575,120]
[337554776,1725808244472,-894.59598701,0.00046575,120]
[337554791,1725808246897,-204.23401299,0.00046575,120]
[337554792,1725808246906,-500.0,0.00046575,120]
[337554793,1725808246916,-500.0,0.00046575,120]
[337554794,1725808246925,-500.0,0.00046575,120]
[337554795,1725808246935,-500.0,0.00046575,120]
[337554796,1725808246944,-942.16,0.00046575,120]
[337554797,1725808246954,-506.33959585,0.00046575,120]
[337554798,1725808246963,-689.68,0.00046575,120]
[337554799,1725808246973,-500.0,0.00046575,120]
[337554800,1725808246985,-500.0,0.00046575,120]
[337554801,1725808246994,-500.0,0.00046575,120]
[337554802,1725808247003,-500.0,0.00046575,120]
[337554803,1725808247013,-500.0,0.00046575,120]
[337554804,1725808247022,-500.0,0.00046575,120]
[337554805,1725808247031,-500.0,0.00046575,120]
[337554806,1725808247040,-82.51607709,0.00046575,120]
[337554841,1725809274628,15956.338753,0.0002,2]
[337554842,1725809297341,155.0,0.0003,2]
[337554843,1725809300202,2889.55923046,0.0002,2]
[337554844,1725809300229,13661.18349443,0.0002,2]
[337554845,1725809306261,155.0,0.000295,2]
[337554846,1725809311171,155.0,0.000295,2]
[337554847,1725809312885,11028.81650557,0.00019,2]
[337554848,1725809312913,6417.2408945,0.00019,2]
[337554849,1725809316236,155.0,0.00029,2]
[337554850,1725809317186,952.1703286,0.00025,7]
[337554851,1725809318143,4600.45224128,0.00015,7]
[337554852,1725809321173,155.84775586,0.00029,2]
[337554853,1725809322084,11538.21953576,0.00020377,2]
[337554854,1725809323079,1181.069244,0.0002,2]
[337554855,1725809323106,25000.0,0.0002,2]
[337554856,1725809323134,21235.30166544,0.0002,2]
[337554857,1725809323747,174.28537312,0.0001999,2]
[337554858,1725809323776,9825.71462688,0.0001999,2]
[337554873,1725809388460,-155.0,0.0003,2]
[337554874,1725809388487,-186.37137025,0.0003065,2]
[337554875,1725809388514,-3900.0,0.00033424,120]
[337554876,1725809388543,-400.0,0.00035359,2]
[337554877,1725809388570,-4448.261203,0.0003536,62]
[337554878,1725809388598,-560.0,0.00038895,30]
[337554879,1725809388624,-303.44446181,0.0004,120]
[337554880,1725809388652,-166.666666,0.00040225,2]
[337554881,1725809388685,-166.666666,0.00041321,2]
[337554882,1725809388711,-500.0,0.0004154,31]
[337554883,1725809388743,-500.0,0.0004154,31]
[337554884,1725809388771,-370.68707273,0.0004154,31]
[337554885,1725809388802,-500.0,0.0004154,7]
[337554886,1725809388831,-500.0,0.0004154,7]
[337554887,1725809388857,-500.0,0.0004154,31]
[337554888,1725809388885,-500.0,0.0004154,7]
[337554889,1725809388912,-457.72527562,0.0004154,31]
[337554890,1725809388940,-500.0,0.0004154,7]
[337554891,1725809388967,-500.0,0.0004154,7]
[337554892,1725809388996,-500.0,0.0004154,7]
[337554893,1725809389023,-500.0,0.0004154,7]
[337554894,1725809389051,-500.0,0.0004154,7]
[337554895,1725809389079,-500.0,0.0004154,7]
[337554896,1725809389105,-500.0,0.0004154,7]
[337554897,1725809389133,-500.0,0.0004154,7]
[337554898,1725809389161,-500.0,0.0004154,7]
[337554899,1725809389189,-500.0,0.0004154,7]
[337554900,1725809389216,-500.0,0.0004154,7]
[337554901,1725809389244,-271.75881577,0.0004154,7]
[337554902,1725809389272,-500.0,0.0004154,7]
[337554903,1725809389299,-500.0,0.0004154,7]
[337554904,1725809389327,-500.0,0.0004154,7]
[337554905,1725809389357,-500.0,0.0004154,7]
[337554906,1725809389385,-500.0,0.0004154,7]
[337554907,1725809389416,-500.0,0.0004154,7]
[337554908,1725809389445,-500.0,0.0004154,7]
[337554909,1725809389473,-500.0,0.0004154,7]
[337554910,1725809389501,-500.0,0.0004154,7]
[337554911,1725809389530,-500.0,0.0004154,7]
[337554912,1725809389558,-113.41846882,0.0004154,7]
[337554913,1725809389970,-386.58153118,0.0004154,7]
[337554914,1725809390000,-500.0,0.0004154,7]
[337554915,1725809390028,-500.0,0.0004154,7]
[337554916,1725809390056,-500.0,0.0004154,7]
[337554917,1725809390089,-500.0,0.0004154,7]
[337554918,1725809390117,-500.0,0.0004154,7]
[337554919,1725809390144,-500.0,0.0004154,7]
[337554920,1725809390172,-500.0,0.0004154,7]
[337554921,1725809390199,-500.0,0.0004154,7]
[337554922,1725809390225,-500.0,0.0004154,7]
[337554923,1725809390252,-500.0,0.0004154,7]
[337554924,1725809390279,-500.0,0.0004154,7]
[337554925,1725809390306,-500.0,0.0004154,7]
[337554926,1725809390331,-500.0,0.0004154,7]
[337554927,1725809390358,-500.0,0.0004154,7]
[337554928,1725809390385,-500.0,0.0004154,7]
[337554929,1725809390412,-500.0,0.0004154,7]
[337554930,1725809390439,-500.0,0.0004154,7]
[337554931,1725809390465,-500.0,0.0004154,7]
[337554932,1725809390491,-500.0,0.0004154,7]
[337554933,1725809390518,-500.0,0.0004154,7]
[337554934,1725809390544,-500.0,0.0004154,7]
[337554935,1725809390570,-500.0,0.0004154,7]
[337554936,1725809390598,-500.0,0.0004154,7]
[337554937,1725809390625,-500.0,0.0004154,7]
[337554938,1725809390653,-500.0,0.0004154,7]
[337554939,1725809390680,-500.0,0.0004154,7]
[337554940,1725809390708,-500.0,0.0004154,7]
[337554941,1725809390741,-500.0,0.0004154,7]
[337554942,1725809390770,-500.0,0.0004154,7]
[337554943,1725809390797,-500.0,0.0004154,7]
[337554944,1725809390823,-500.0,0.0004154,7]
[337554945,1725809390850,-500.0,0.0004154,7]
[337554946,1725809390876,-500.0,0.0004154,7]
[337554947,1725809390904,-500.0,0.0004154,7]
[337554948,1725809390931,-500.0,0.0004154,7]
[337554949,1725809390959,-500.0,0.0004154,7]
[337554950,1725809390986,-500.0,0.0004154,7]
[337554951,1725809391012,-500.0,0.0004154,7]
[337554952,1725809391038,-500.0,0.0004154,7]
[337554953,1725809391064,-500.0,0.0004154,7]
[337554954,1725809391090,-500.0,0.0004154,7]
[337554955,1725809391118,-500.0,0.0004154,7]
[337554956,1725809391144,-500.0,0.0004154,7]
[337554957,1725809391171,-500.0,0.0004154,7]
[337554958,1725809391196,-500.0,0.0004154,7]
[337554959,1725809391223,-500.0,0.0004154,7]
[337554960,1725809391249,-500.0,0.0004154,7]
[337554961,1725809391276,-650.0,0.0004154,7]
[337554962,1725809391302,-463.41846882,0.0004154,7]
[337554981,1725809432655,-190.21038,0.00035369,2]
[337554982,1725809432667,-1045.87726182,0.00039851,2]
[337554983,1725809432678,-221.0,0.00041539,30]
[337554984,1725809432690,-36.58153118,0.0004154,7]
[337554985,1725809432704,-500.0,0.0004154,7]
[337554986,1725809432716,-500.0,0.0004154,7]
[337554987,1725809432727,-500.0,0.0004154,7]
[337554988,1725809432739,-500.0,0.0004154,7]
[337554989,1725809432753,-500.0,0.0004154,7]
[337554990,1725809432764,-500.0,0.0004154,7]
[337554991,1725809432776,-500.0,0.0004154,7]
[337554992,1725809432786,-616.330827,0.00041541,2]
[337554993,1725809432799,-273.01806531,0.00041541,2]
[337554994,1725809432823,-1125.34105446,0.00041541,2]
[337554995,1725809432836,-1345.0317489,0.00041541,2]
[337555037,1725809438807,-21540.27830433,0.00041541,2]
[337555039,1725809438818,-166.666666,0.00042418,2]
[337555041,1725809438829,-166.666666,0.00043515,2]
[337555042,1725809438840,-166.666666,0.00044611,2]
[337555043,1725809438851,-500.0,0.00045,120]
[337555044,1725809438862,-500.0,0.00045,120]
[337555046,1725809438873,-156.0,0.00045,90]
[337555048,1725809438884,-731.53558855,0.00045102,30]
[337555194,1725809441124,-4268.46441145,0.00045102,30]
[337555195,1725809441134,-166.666666,0.00045708,2]
[337555196,1725809441144,-500.0,0.00046,120]
[337555197,1725809441154,-497.8,0.00046,120]
[337555198,1725809441163,-200.0,0.000465,30]
[337555199,1725809441173,-200.0,0.000465,30]
[337555200,1725809441183,-200.0,0.000465,30]
[337555201,1725809441192,-200.0,0.000465,30]
[337555202,1725809441203,-200.0,0.000465,30]
[337555203,1725809441212,-200.0,0.000465,30]
[337555204,1725809441222,-200.0,0.000465,30]
[337555205,1725809441231,-200.0,0.000465,30]
[337555206,1725809441241,-200.0,0.000465,30]
[337555207,1725809441251,-200.0,0.000465,30]
[337555208,1725809441261,-164.34,0.000465,30]
[337555210,1725809441272,-1000.0,0.00047,120]
[337555212,1725809441283,-500.0,0.00047389,30]
[337555214,1725809441294,-150.112235,0.000474,15]
[337555216,1725809441307,-150.112233,0.000476,14]
[337555218,1725809441317,-52725.741758,0.00047631,5]
[337555220,1725809441328,-156.0,0.00047682,90]
[337555222,1725809441337,-500.0,0.00048,120]
[337555225,1725809441349,-700.0,0.00048048,30]
[337555227,1725809441359,-518.74509394,0.00048066,18]
[337555229,1725809441368,-500.0,0.00048131,18]
[337555231,1725809441378,-406.41966109,0.00048727,120]
[337555233,1725809441387,-36393.76722326,0.00048728,6]
[337555235,1725809441399,-1999.98674099,0.00048728,6]
[337555237,1725809441411,-562.76647442,0.00048728,6]
[337555365,1725809446868,-13769.22131933,0.00048728,6]
[337555366,1725809446878,-52725.741758,0.0004898,6]
[337555367,1725809446888,-26362.870879,0.0004899,6]
[337555368,1725809446898,-1000.0,0.00049,120]
[337555369,1725809446907,-24982.25250963,0.00049,120]
[337555370,1725809446916,-32976.94115435,0.00049244,6]
[337555371,1725809446927,-269.99921475,0.00049244,6]
[337555372,1725809446939,-283.28519999,0.00049244,6]
[337555419,1725810631978,-220.0,0.000355,2]
[337555421,1725810631988,-319.62,0.0003555,2]
[337555423,1725810631998,-548.59105446,0.00036,2]
[337555425,1725810632008,-165.317325,0.00036971,30]
[337555427,1725810632018,-250.0,0.00038886,2]
[337555429,1725810632029,-166.666673,0.00039433,2]
[337555431,1725810632040,-400.0,0.00039711,30]
[337555433,1725810632051,-3339.80494754,0.00039712,2]
[337555435,1725810632064,-5921.32627386,0.00039712,2]
[337555437,1725810632073,-240.7924992,0.00039799,2]
[337555439,1725810632083,-1417.6186143,0.00040361,2]
[337555441,1725810632093,-166.666673,0.00040777,2]
[337555443,1725810632103,-166.666673,0.0004212,2]
[337555445,1725810632113,-166.666673,0.00043464,2]
[337555447,1725810632122,-200.0,0.00043682,30]
[337555449,1725810632132,-166.666673,0.00044808,2]
[337555451,1725810632142,-500.0,0.0004791,30]
[337555453,1725810632151,-156.0,0.00048,90]
[337555455,1725810632162,-500.0,0.00048406,30]
[337555457,1725810632173,-970.18786685,0.00048766,2]
[337555459,1725810632183,-1839.99770805,0.00048769,28]
[337555461,1725810632194,-207.40445216,0.000488,2]
[337555463,1725810632205,-500.0,0.00048867,120]
[337555465,1725810632215,-500.0,0.00048867,7]
[337555466,1725810632225,-225.36561115,0.00048867,120]
[337555467,1725810632234,-500.0,0.00048867,7]
[337555468,1725810632244,-500.0,0.00048867,120]
[337555469,1725810632253,-500.0,0.00048867,7]
[337555470,1725810632263,-500.0,0.00048867,7]
[337555471,1725810632272,-383.87178895,0.00048867,120]
[337555472,1725810632282,-500.0,0.00048867,7]
[337555473,1725810632293,-500.0,0.00048867,7]
[337555474,1725810632303,-500.0,0.00048867,7]
[337555475,1725810632313,-500.0,0.00048867,7]
[337555476,1725810632324,-500.0,0.00048867,7]
[337555477,1725810632335,-500.0,0.00048867,7]
[337555478,1725810632347,-500.0,0.00048867,7]
[337555479,1725810632357,-500.0,0.00048867,7]
[337555480,1725810632367,-500.0,0.00048867,7]
[337555481,1725810632379,-500.0,0.00048867,7]
[337555482,1725810632397,-500.0,0.00048867,7]
[337555483,1725810632406,-581.76575767,0.00048867,7]
[337555484,1725810632416,-500.0,0.00048867,7]
[337555485,1725810632427,-500.0,0.00048867,7]
[337555486,1725810632438,-500.0,0.00048867,7]
[337555487,1725810632447,-500.0,0.00048867,7]
[337555488,1725810632456,-500.0,0.00048867,7]
[337555489,1725810632465,-500.0,0.00048867,7]
[337555490,1725810632475,-500.0,0.00048867,7]
[337555491,1725810632484,-500.0,0.00048867,7]
[337555492,1725810632493,-500.0,0.00048867,7]
[337555493,1725810632502,-500.0,0.00048867,7]
[337555494,1725810632511,-500.0,0.00048867,7]
[337555495,1725810632520,-500.0,0.00048867,7]
[337555496,1725810632530,-500.0,0.00048867,7]
[337555497,1725810632543,-500.0,0.00048867,7]
[337555498,1725810632553,-500.0,0.00048867,7]
[337555499,1725810632562,-500.0,0.00048867,7]
[337555500,1725810632571,-500.0,0.00048867,7]
[337555501,1725810632583,-500.0,0.00048867,7]
[337555502,1725810632592,-500.0,0.00048867,7]
[337555503,1725810632602,-500.0,0.00048867,7]
[337555504,1725810632614,-600.0,0.00048867,7]
[337555505,1725810632626,-500.0,0.00048867,7]
[337555506,1725810632637,-500.0,0.00048867,7]
[337555507,1725810632648,-500.0,0.00048867,7]
[337555508,1725810632658,-500.0,0.00048867,7]
[337555509,1725810632667,-500.0,0.00048867,7]
[337555510,1725810632677,-998.39697225,0.00048869,9]
[337555511,1725810632685,-152.43784128,0.000489,10]
[337555512,1725810632694,-500.0,0.00049,120]
[337555513,1725810632704,-500.0,0.00049022,30]
[337555514,1725810632713,-500.0,0.00049106,18]
[337555515,1725810632722,-900.0,0.00049139,30]
[337555516,1725810632732,-500.0,0.00049315,60]
[337555517,1725810632741,-500.0,0.00049378,30]
[337555518,1725810632751,-503.4699173,0.00049575,2]
[337555519,1725810632760,-500.0,0.00049575,7]
[337555520,1725810632769,-88888.0,0.0004967,120]
[337555521,1725810632780,-129212.64721673,0.00049751,6]
[337555522,1725810632792,-68230.70485227,0.00049751,6]
[337555523,1725810632801,-26901.03243763,0.0004976,61]
[337555525,1725810632811,-33557.8794601,0.0004976,6]
[337555528,1725810632827,-1727.25,0.0004976,6]
[337555530,1725810632838,-2415.61310705,0.0004976,6]
[337555533,1725810632854,-542.01,0.0004976,6]
[337555535,1725810632865,-5151.91,0.0004976,6]
[337555577,1725810637944,-500.0,0.00049669,120]
[337555579,1725810637954,-303.98436586,0.00049669,31]
[337555580,1725810637964,-481.30389751,0.00049669,120]
[337555581,1725810637974,-500.0,0.00049669,120]
[337555582,1725810637983,-23198.08317841,0.0004976,61]
[337555583,1725810637995,-821.96685477,0.0004976,61]
[337555584,1725810638007,-9669.42110726,0.0004976,61]
[337555585,1725810638057,-1220.49999999,0.0004976,61]
[337555634,1725810639995,-1593.59258117,0.0004976,61]
[337555642,1725810640057,-21049.11367394,0.0004976,61]
[337555644,1725810640066,-27236.73727631,0.0004976,6]
[337555704,1725810643165,-126811.95222554,0.0004976,6]
[337555705,1725810643175,-500.0,0.00049773,10]
[337555706,1725810643187,-151.0,0.00049861,120]
[337555707,1725810643199,-151.0,0.00049861,120]
[337555708,1725810643209,-151.0,0.00049861,120]
[337555709,1725810643220,-151.0,0.00049861,120]
[337555710,1725810643230,-151.0,0.00049861,120]
[337555711,1725810643239,-151.0,0.00049861,120]
[337555712,1725810643249,-151.0,0.00049861,120]
[337555713,1725810643264,-151.0,0.00049861,120]
[337555714,1725810643279,-151.0,0.00049861,120]
[337555715,1725810643289,-151.0,0.00049861,120]
[337555716,1725810643298,-225.589018,0.00049861,120]
[337555717,1725810643308,-255.441736,0.00049861,120]
[337555718,1725810643318,-255.441736,0.00049861,120]
[337555719,1725810643328,-151.0,0.00049861,120]
[337555720,1725810643337,-151.0,0.00049861,120]
[337555721,1725810643347,-275.204576,0.00049861,120]
[337555722,1725810643357,-286.350914,0.00049861,120]
[337555723,1725810643367,-151.0,0.00049861,120]
[337555724,1725810643377,-286.350914,0.00049861,120]
[337555725,1725810643386,-151.0,0.00049861,120]
[337555726,1725810643397,-151.0,0.00049861,120]
[337555727,1725810643409,-151.0,0.00049861,120]
[337555728,1725810643419,-151.0,0.00049861,120]
[337555729,1725810643428,-151.0,0.0004987,120]
[337555730,1725810643438,-267.687222,0.0004988,120]
[337555731,1725810643448,-151.0,0.0004988,120]
[337555732,1725810643458,-200.959998,0.0004988,120]
[337555733,1725810643468,-200.959998,0.0004988,120]
[337555734,1725810643478,-151.0,0.0004988,120]
[337555735,1725810643488,-151.0,0.0004988,120]
[337555736,1725810643500,-194.622411,0.0004988,120]
[337555737,1725810643510,-1000.0,0.0004988,2]
[337555738,1725810643522,-194.622411,0.0004988,120]
[337555739,1725810643532,-151.0,0.0004988,120]
[337555740,1725810643542,-151.0,0.0004988,120]
[337555742,1725810643555,-200.0,0.0005,120]
[337555744,1725810643566,-558.74125901,0.0005,63]
[337555746,1725810643576,-900.0,0.00050407,60]
[337555747,1725810643586,-156.0,0.00050486,120]